bitfinex/quotes_BTCUSD_20240715
["timestamp","ask_amount","ask_price","bid_price","bid_amount"]
[1721062087540,0.007,63594.0,63593.0,0.70190221]
[1721062087738,0.007,63594.0,63593.0,0.11260758]
[1721062087960,0.007,63594.0,63593.0,0.23015221]
[1721062089227,0.007,63594.0,63593.0,0.38740221]
[1721062089420,0.64261846,63606.0,63603.0,0.14808683]
[1721062089625,0.64261846,63606.0,63603.0,0.22913921]
[1721062090167,0.64261846,63606.0,63603.0,0.29443921]
[1721062090738,0.64261846,63606.0,63603.0,0.17689458]
[1721062090972,0.02235,63604.0,63603.0,0.17789458]
[1721062091164,0.02235,63604.0,63603.0,0.29543921]
[1721062091619,0.02235,63604.0,63603.0,0.45266421]
[1721062091844,0.03335,63604.0,63603.0,0.29643921]
[1721062092263,0.03335,63604.0,63603.0,0.45366421]
[1721062092483,0.02235,63604.0,63603.0,0.29543921]
[1721062092707,0.02335,63604.0,63603.0,0.30443921]
[1721062092925,0.00935,63604.0,63603.0,0.30343921]
[1721062093131,0.01035,63604.0,63603.0,0.31643921]
[1721062095060,0.01035,63604.0,63603.0,0.55346421]
[1721062095503,0.01035,63604.0,63603.0,0.31518683]
[1721062096002,0.01035,63604.0,63603.0,0.17008683]
[1721062096454,0.01035,63604.0,63603.0,0.022]
[1721062096659,0.17745,63604.0,63603.0,0.022]
[1721062096863,0.03335,63604.0,63603.0,0.022]
[1721062097073,0.01035,63604.0,63603.0,0.0525422]
[1721062097275,0.01035,63604.0,63603.0,0.022]
[1721062097478,0.03335,63604.0,63603.0,0.022]
[1721062097680,0.03235,63604.0,63603.0,0.013]
[1721062098105,0.03235,63604.0,63603.0,0.002]
[1721062098106,0.03135,63604.0,63603.0,0.002]
[1721062098521,0.00835,63604.0,63603.0,0.14808683]
[1721062098660,0.00835,63604.0,63603.0,0.14818683]
[1721062098858,0.00835,63604.0,63603.0,0.14918683]
[1721062099450,0.00835,63604.0,63603.0,0.14818683]
[1721062099650,0.00835,63604.0,63603.0,0.30641183]
[1721062100308,0.00835,63604.0,63603.0,0.31141183]
[1721062100500,0.00835,63604.0,63603.0,0.30641183]
[1721062100856,0.00835,63604.0,63603.0,0.31141183]
[1721062101067,0.00045937,63597.0,63593.0,0.000913]
[1721062101268,0.00045937,63594.0,63593.0,0.000913]
[1721062101493,0.63255937,63594.0,63593.0,0.000913]
[1721062101700,0.65555937,63594.0,63593.0,0.000913]
[1721062102293,0.65555937,63594.0,63593.0,0.001913]
[1721062102948,0.65555937,63594.0,63593.0,0.000913]
[1721062104142,0.65655937,63594.0,63593.0,0.000913]
[1721062104519,0.66755937,63594.0,63593.0,0.001913]
[1721062104720,0.66755937,63594.0,63593.0,0.002913]
[1721062104721,0.88045937,63594.0,63593.0,0.002913]
[1721062104908,0.88035937,63594.0,63593.0,0.002913]
[1721062105109,0.68025937,63594.0,63593.0,0.002913]
[1721062108106,0.6802,63594.0,63593.0,0.002913]
[1721062108457,0.3949,63594.0,63593.0,0.002913]
[1721062111828,0.3948,63594.0,63593.0,0.002913]
[1721062113905,0.3948,63594.0,63593.0,0.003013]
[1721062115969,0.2289,63594.0,63593.0,0.003013]
[1721062120338,0.4572,63594.0,63593.0,0.003013]
[1721062124510,0.6231,63594.0,63593.0,0.003013]
[1721062125891,0.8231,63594.0,63593.0,0.003013]
[1721062126096,1.3642998,63594.0,63593.0,0.003013]
[1721062126805,0.8925578,63594.0,63593.0,0.003013]
[1721062126968,0.6925578,63594.0,63593.0,0.003013]
[1721062127394,1.0498048,63594.0,63593.0,0.003013]
[1721062128471,0.6231,63594.0,63593.0,0.003013]
[1721062128620,0.8498048,63594.0,63593.0,0.003013]
[1721062128799,1.0498048,63594.0,63593.0,0.003013]
[1721062129006,0.8498048,63594.0,63593.0,0.003013]
[1721062129203,0.6925578,63594.0,63593.0,0.003013]
[1721062129980,1.1163048,63594.0,63593.0,0.003013]
[1721062130315,1.7452948,63594.0,63593.0,0.003013]
[1721062133267,0.2,63584.0,63575.0,0.00306353]
[1721062133475,0.0694578,63587.0,63574.0,0.08105238]
[1721062133476,0.2283,63576.0,63574.0,0.08105238]
[1721062133673,0.123,63575.0,63574.0,0.08105238]
[1721062134254,0.123,63575.0,63571.0,0.4673]
[1721062134683,0.123,63575.0,63574.0,0.08105238]
[1721062135484,0.124,63575.0,63574.0,0.08905238]
[1721062135887,0.125,63575.0,63574.0,0.08105238]
[1721062136306,0.025,63575.0,63574.0,0.08205238]
[1721062136675,0.0249,63575.0,63574.0,0.08205238]
[1721062136921,0.0248,63575.0,63574.0,0.08205238]
[1721062137275,0.0018,63575.0,63574.0,0.08205238]
[1721062138045,0.0018,63575.0,63574.0,0.19999701]
[1721062138754,0.0018,63575.0,63574.0,0.08205238]
[1721062139500,0.0018,63575.0,63574.0,0.19999701]
[1721062140511,0.0018,63575.0,63574.0,0.08205238]
[1721062141130,0.0017,63575.0,63574.0,0.19999701]
[1721062144068,0.0017,63575.0,63574.0,0.30963921]
[1721062144394,0.0017,63575.0,63574.0,0.37463921]
[1721062144975,0.023,63577.0,63576.0,0.11794463]
[1721062145197,0.023,63577.0,63576.0,0.14848683]
[1721062146065,0.1,63590.0,63585.0,0.11794463]
[1721062146274,0.1,63590.0,63581.0,0.0305422]
[1721062146275,0.023,63589.0,63588.0,0.11794463]
[1721062146468,0.023,63590.0,63588.0,0.11794463]
[1721062146670,0.00083,63594.0,63593.0,0.14848683]
[1721062146879,0.00083,63594.0,63593.0,0.75853683]
[1721062147113,0.00083,63594.0,63593.0,0.81853683]
[1721062147339,0.00083,63594.0,63593.0,1.13303683]
[1721062147561,0.00083,63594.0,63593.0,1.07303683]
[1721062147767,0.00983,63594.0,63593.0,1.13303683]
[1721062147970,0.00983,63594.0,63593.0,1.07303683]
[1721062148376,0.00083,63594.0,63593.0,1.07303683]
[1721062148616,0.00183,63594.0,63593.0,1.07503683]
[1721062148848,0.00183,63594.0,63593.0,1.13503683]
[1721062149082,0.00183,63594.0,63593.0,1.07503683]
[1721062149318,0.00183,63594.0,63593.0,1.13503683]
[1721062149543,0.00083,63605.0,63603.0,0.28848683]
[1721062150694,0.00083,63605.0,63603.0,0.29348683]
[1721062152181,0.00083,63605.0,63603.0,0.30148683]
[1721062152182,0.00935,63604.0,63603.0,0.30148683]
[1721062155438,0.00935,63604.0,63603.0,0.1835422]
[1721062155636,0.03235,63604.0,63603.0,0.0435422]
[1721062156470,0.03235,63604.0,63603.0,0.16148683]
[1721062157580,0.03235,63604.0,63603.0,0.0435422]
[1721062157768,0.03235,63604.0,63603.0,0.16148683]
[1721062158633,0.03235,63604.0,63603.0,0.0435422]
[1721062158913,0.03235,63604.0,63603.0,0.16158683]
[1721062159269,0.00935,63604.0,63603.0,0.16158683]
[1721062159870,0.00935,63604.0,63603.0,0.0436422]
[1721062160270,0.00935,63604.0,63603.0,0.16158683]
[1721062161099,0.00935,63604.0,63603.0,0.22158683]
[1721062161298,0.00935,63604.0,63603.0,1.00771183]
[1721062161940,0.00935,63604.0,63603.0,0.94771183]
[1721062162438,0.00835,63604.0,63603.0,0.31081183]
[1721062162636,0.00835,63604.0,63603.0,0.62526183]
[1721062162837,0.00935,63604.0,63603.0,0.63926183]
[1721062163065,0.00935,63604.0,63603.0,0.31981183]
[1721062163260,0.00935,63604.0,63603.0,0.16258683]
[1721062163385,0.01035,63604.0,63603.0,0.17458683]
[1721062164142,0.01035,63604.0,63603.0,0.33181183]
[1721062164482,0.01035,63604.0,63603.0,0.23458683]
[1721062164683,0.01035,63604.0,63603.0,0.1166422]
[1721062164903,0.01035,63604.0,63603.0,0.0566422]
[1721062165104,0.03335,63604.0,63603.0,0.0261]
[1721062166115,0.03135,63604.0,63603.0,0.0001]
[1721062166504,0.03335,63604.0,63603.0,0.0001]
[1721062166994,0.77085,63604.0,63603.0,0.0001]
[1721062167195,1.2503962,63604.0,63603.0,0.0001]
[1721062167383,1.0413078,63604.0,63603.0,0.0001]
[1721062167827,0.27665,63604.0,63603.0,0.0001]
[1721062168196,0.27665,63604.0,63603.0,0.0011]
[1721062168197,0.28365,63604.0,63603.0,0.0011]
[1721062168747,0.13835,63604.0,63603.0,0.0011]
[1721062169453,0.13935,63604.0,63603.0,0.0011]
[1721062169676,0.13135,63604.0,63603.0,0.0001]
[1721062169887,0.14135,63604.0,63603.0,0.0011]
[1721062170077,0.14535,63604.0,63603.0,0.0011]
[1721062170313,0.03535,63604.0,63603.0,0.0001]
[1721062170786,0.04135,63604.0,63603.0,0.0001]
[1721062171879,0.03735,63604.0,63603.0,0.0001]
[1721062172391,0.03735,63604.0,63603.0,0.0011]
[1721062172654,0.03135,63604.0,63603.0,0.14958683]
[1721062172883,0.00835,63604.0,63603.0,0.0011]
[1721062173124,0.00935,63604.0,63603.0,0.0011]
[1721062174036,0.03235,63604.0,63603.0,0.0011]
[1721062176105,0.03235,63604.0,63603.0,0.11904463]
[1721062177760,0.00935,63604.0,63603.0,0.1086422]
[1721062177988,0.03235,63604.0,63603.0,0.0011]
[1721062178858,0.03235,63604.0,63603.0,0.11904463]
[1721062179397,0.03235,63604.0,63603.0,0.0011]
[1721062179921,0.03235,63604.0,63594.0,0.08097653]
[1721062179922,0.8070928,63595.0,63594.0,0.00397653]
[1721062180153,1.3785928,63595.0,63594.0,0.000913]
[1721062180390,1.7930828,63595.0,63594.0,0.000913]
[1721062180607,1.3015928,63595.0,63594.0,0.000913]
[1721062181806,1.3015928,63595.0,63579.0,0.4673]
[1721062181807,0.2659,63587.0,63579.0,0.4673]
[1721062182018,0.1659,63581.0,63574.0,0.4863143]
[1721062182267,0.1659,63579.0,63574.0,0.4863143]
[1721062182480,0.1659,63579.0,63568.0,0.61578683]
[1721062182481,0.1,63578.0,63568.0,0.61578683]
[1721062182760,0.123,63578.0,63573.0,0.08105238]
[1721062183123,0.123,63578.0,63574.0,0.11794463]
[1721062183737,0.1,63577.0,63575.0,0.0305422]
[1721062183965,0.0229,63576.0,63575.0,0.0305422]
[1721062184436,0.0229,63576.0,63575.0,0.14848683]
[1721062184659,0.0229,63576.0,63575.0,0.0305422]
[1721062185153,0.0229,63576.0,63575.0,0.0315422]
[1721062185591,0.0229,63576.0,63575.0,0.0305422]
[1721062185822,0.0229,63576.0,63575.0,0.0335422]
[1721062186525,0.0229,63576.0,63575.0,0.15148683]
[1721062187001,0.0658,63595.0,63586.0,0.11794463]
[1721062187201,0.2977578,63600.0,63594.0,0.11794463]
[1721062187202,0.0658,63600.0,63594.0,0.11794463]
[1721062187408,0.0658,63600.0,63591.0,0.0305422]
[1721062187409,0.0759,63603.0,63592.0,0.11794463]
[1721062187637,0.0759,63603.0,63590.0,0.0653]
[1721062187828,0.2283,63600.0,63591.0,0.0305422]
[1721062188239,0.011,63595.0,63591.0,0.0305422]
[1721062188528,0.023,63594.0,63592.0,0.11794463]
[1721062188731,0.023,63594.0,63591.0,0.0306422]
[1721062188903,0.023,63599.0,63591.0,0.0306422]
[1721062189283,0.023,63599.0,63591.0,0.0316422]
[1721062189484,0.123,63599.0,63591.0,0.0306422]
[1721062189913,0.004,63594.0,63591.0,0.0306422]
[1721062190073,0.023,63593.0,63591.0,0.0011]
[1721062190515,0.023,63593.0,63591.0,0.0001]
[1721062190936,0.023,63593.0,63591.0,0.0011]
[1721062191338,0.023,63598.0,63592.0,0.11794463]
[1721062191569,0.001,63599.0,63598.0,0.05994063]
[1721062191773,0.001,63599.0,63598.0,0.22953921]
[1721062191944,0.00835,63604.0,63599.0,0.14848683]
[1721062192787,0.00835,63604.0,63603.0,0.11794463]
[1721062193125,0.03135,63604.0,63600.0,0.11794463]
[1721062193327,0.023,63603.0,63599.0,0.0305422]
[1721062193711,0.023,63603.0,63598.0,0.11794463]
[1721062193846,0.023,63603.0,63597.0,0.0305422]
[1721062194263,0.023,63603.0,63598.0,0.11794463]
[1721062194456,0.023,63603.0,63599.0,0.11794463]
[1721062194719,0.023,63603.0,63600.0,0.11794463]
[1721062195131,0.029,63603.0,63602.0,0.11794463]
[1721062195352,0.033,63603.0,63602.0,0.11794463]
[1721062195651,0.033,63603.0,63597.0,0.14848683]
[1721062195804,0.033,63603.0,63597.0,0.0305422]
[1721062196009,0.033,63603.0,63596.0,0.11794463]
[1721062196010,0.033,63603.0,63600.0,0.002]
[1721062196371,0.029,63603.0,63599.0,0.11794463]
[1721062196588,0.029,63603.0,63600.0,0.11794463]
[1721062196818,0.029,63603.0,63602.0,0.003]
[1721062197177,0.023,63603.0,63602.0,0.003]
[1721062197984,0.023,63603.0,63595.0,0.09048283]
[1721062198188,0.0623,63598.0,63592.0,0.0305422]
[1721062198388,0.023,63597.0,63592.0,0.14848683]
[1721062198772,0.023,63597.0,63594.0,0.0305422]
[1721062198980,0.023,63597.0,63592.0,0.14848683]
[1721062199197,0.023,63597.0,63594.0,0.0305422]
[1721062199430,0.023,63597.0,63592.0,0.15548683]
[1721062199648,0.023,63597.0,63592.0,0.007]
[1721062199844,0.2283,63593.0,63591.0,0.00316353]
[1721062200068,0.123,63592.0,63591.0,0.0001]
[1721062200939,0.1,63592.0,63591.0,0.22963921]
[1721062201143,0.00835,63604.0,63599.0,0.11794463]
[1721062201347,0.00835,63604.0,63595.0,0.0603]
[1721062201348,0.00835,63604.0,63603.0,0.14848683]
[1721062201996,0.00835,63604.0,63603.0,0.0305422]
[1721062202796,0.00835,63604.0,63598.0,0.08105238]
[1721062202797,0.03135,63604.0,63599.0,0.11794463]
[1721062203000,0.023,63603.0,63599.0,0.11794463]
[1721062203135,0.023,63603.0,63598.0,0.0305422]
[1721062203334,0.023,63603.0,63599.0,0.11794463]
[1721062203540,0.023,63603.0,63595.0,0.0305422]
[1721062203541,0.2283,63600.0,63595.0,0.0305422]
[1721062203764,0.023,63599.0,63596.0,0.11794463]
[1721062204012,0.023,63599.0,63598.0,0.11794463]
[1721062204215,0.023,63603.0,63602.0,0.11794463]
[1721062204662,0.032,63603.0,63602.0,0.11794463]
[1721062204873,0.037,63603.0,63602.0,0.11794463]
[1721062205112,0.023,63603.0,63602.0,0.11794463]
[1721062205548,0.028,63603.0,63602.0,0.11894463]
[1721062205910,0.028,63603.0,63602.0,0.14948683]
[1721062206108,0.005,63603.0,63602.0,0.14948683]
[1721062206522,0.013,63603.0,63602.0,0.15048683]
[1721062207212,0.005,63603.0,63602.0,0.14948683]
[1721062207656,0.007,63603.0,63602.0,0.21018683]
[1721062207872,0.007,63603.0,63602.0,0.27018683]
[1721062208189,0.005,63603.0,63602.0,0.34898683]
[1721062208400,0.00835,63604.0,63603.0,0.20848683]
[1721062209500,0.00835,63604.0,63603.0,0.36571183]
[1721062210132,0.00835,63604.0,63603.0,0.68016183]
[1721062210385,0.00835,63604.0,63603.0,0.99461183]
[1721062211206,0.00835,63604.0,63603.0,0.14848683]
[1721062211408,0.00835,63604.0,63603.0,0.36571183]
[1721062211580,0.00835,63604.0,63603.0,0.37071183]
[1721062211719,0.00835,63604.0,63603.0,0.31471183]
[1721062212278,0.00835,63604.0,63603.0,0.37471183]
[1721062212639,0.00835,63604.0,63603.0,0.68916183]
[1721062212821,0.00835,63604.0,63603.0,0.68416183]
[1721062213240,0.00835,63604.0,63603.0,0.69316183]
[1721062213418,0.00835,63604.0,63603.0,0.70416183]
[1721062214982,0.00835,63604.0,63603.0,1.01861183]
[1721062215413,0.00835,63604.0,63603.0,0.8406672]
[1721062215837,0.00835,63604.0,63603.0,1.01861183]
[1721062218705,0.00835,63604.0,63603.0,1.01871183]
[1721062219600,1e-08,63604.0,63603.0,1.01871183]
[1721062221798,1e-08,63604.0,63603.0,0.17258683]
[1721062222613,1e-08,63604.0,63603.0,0.17213056]
[1721062222993,1e-08,63604.0,63603.0,0.15958683]
[1721062223232,1e-08,63604.0,63603.0,0.14858683]
[1721062223641,0.00400001,63604.0,63603.0,0.20858683]
[1721062223839,0.00400001,63604.0,63603.0,0.15958683]
[1721062224034,1e-08,63604.0,63603.0,0.15958683]
[1721062224174,1e-08,63604.0,63603.0,0.70026183]
[1721062224391,1e-08,63604.0,63603.0,0.32581183]
[1721062224593,1e-08,63604.0,63603.0,0.38581183]
[1721062224797,1e-08,63604.0,63603.0,0.32581183]
[1721062226643,1e-08,63604.0,63603.0,0.16858683]
[1721062226874,1e-08,63604.0,63603.0,0.32581183]
[1721062227401,1e-08,63604.0,63603.0,0.2078672]
[1721062227686,1e-08,63604.0,63603.0,0.32581183]
[1721062227889,1e-08,63604.0,63603.0,0.2078672]
[1721062228116,1e-08,63604.0,63603.0,0.32581183]
[1721062228300,1e-08,63604.0,63603.0,0.2078672]
[1721062228495,1e-08,63604.0,63603.0,0.16858683]
[1721062228934,1e-08,63604.0,63603.0,0.32581183]
[1721062229139,1e-08,63604.0,63603.0,0.70026183]
[1721062231587,1e-08,63604.0,63603.0,0.16858683]
[1721062231791,0.00791315,63604.0,63603.0,0.16858683]
[1721062231995,1e-08,63604.0,63603.0,0.16858683]
[1721062232632,1e-08,63604.0,63603.0,0.32581183]
[1721062232842,1e-08,63604.0,63603.0,0.16858683]
[1721062233175,0.0079186,63604.0,63603.0,0.16858683]
[1721062233386,1e-08,63604.0,63603.0,0.16858683]
[1721062234325,1e-08,63604.0,63603.0,0.22858683]
[1721062234505,1e-08,63604.0,63603.0,0.16858683]
[1721062235082,1e-08,63604.0,63603.0,0.38581183]
[1721062235284,1e-08,63604.0,63603.0,0.70026183]
[1721062235588,1e-08,63604.0,63603.0,0.32581183]
[1721062235832,1e-08,63604.0,63603.0,0.38581183]
[1721062236080,1e-08,63604.0,63603.0,1.01471183]
[1721062236217,0.00083,63605.0,63604.0,0.64961163]
[1721062236423,0.00083,63605.0,63604.0,0.96405663]
[1721062236651,0.00083,63605.0,63604.0,0.64961163]
[1721062237128,0.00083,63605.0,63604.0,0.96405663]
[1721062237349,0.00083,63605.0,63604.0,0.97205663]
[1721062237549,0.00083,63605.0,63604.0,0.98205663]
[1721062238002,0.00083,63605.0,63604.0,0.97405663]
[1721062238439,0.00083,63605.0,63604.0,0.98305663]
[1721062238869,0.00083,63605.0,63604.0,0.97305663]
[1721062239043,0.00083,63605.0,63604.0,1.01459883]
[1721062240907,0.00083,63605.0,63604.0,0.95459883]
[1721062241276,0.00083,63605.0,63604.0,1.01459883]
[1721062244494,0.00083,63605.0,63604.0,0.8366542]
[1721062244695,0.00083,63605.0,63604.0,1.01459883]
[1721062245475,0.00083,63605.0,63604.0,0.16848683]
[1721062245726,0.08603,63605.0,63604.0,0.0505422]
[1721062246184,0.09314844,63605.0,63604.0,0.0505422]
[1721062249991,0.09314844,63605.0,63604.0,0.02]
[1721062250229,0.66284844,63605.0,63604.0,0.02]
[1721062250735,0.66284844,63605.0,63604.0,0.011]
[1721062250962,0.52514844,63605.0,63603.0,0.0001]
[1721062251191,0.3109,63604.0,63603.0,0.0001]
[1721062251413,0.268,63604.0,63603.0,0.0001]
[1721062251824,0.27413212,63604.0,63603.0,0.11804463]
[1721062252055,0.20893212,63604.0,63603.0,0.11804463]
[1721062252441,0.20893212,63604.0,63603.0,0.0001]
[1721062253491,0.12913212,63604.0,63603.0,0.14858683]
[1721062253697,0.03713212,63604.0,63603.0,0.14858683]
[1721062254117,0.01413212,63604.0,63603.0,0.14858683]
[1721062254321,0.00613212,63604.0,63603.0,0.14858683]
[1721062254525,0.01013212,63604.0,63603.0,0.14858683]
[1721062255159,0.00613212,63604.0,63603.0,0.14858683]
[1721062255405,0.02913212,63604.0,63603.0,0.15058683]
[1721062255913,0.02913212,63604.0,63603.0,0.15258683]
[1721062256158,0.02913212,63604.0,63603.0,0.0346422]
[1721062256389,0.02913212,63604.0,63603.0,0.0326422]
[1721062256617,0.02913212,63604.0,63603.0,0.0021]
[1721062256849,0.02913212,63604.0,63603.0,0.0346422]
[1721062257077,0.02913212,63604.0,63603.0,0.0326422]
[1721062257540,0.03213212,63604.0,63603.0,0.0306422]
[1721062257988,0.03713212,63604.0,63603.0,0.0306422]
[1721062258462,0.03713212,63604.0,63603.0,0.03017439]
[1721062259162,0.03713212,63604.0,63600.0,0.000913]
[1721062259163,0.1659,63602.0,63600.0,0.000913]
[1721062259393,0.307,63601.0,63600.0,0.000913]
[1721062259614,0.61308887,63601.0,63600.0,0.000913]
[1721062259804,0.43608887,63601.0,63600.0,0.000913]
[1721062260507,0.43608887,63601.0,63600.0,0.001913]
[1721062260725,0.27018887,63601.0,63600.0,0.001913]
[1721062261209,0.27818887,63601.0,63600.0,0.003913]
[1721062261659,0.27318887,63601.0,63600.0,0.002913]
[1721062261919,0.27318887,63601.0,63600.0,0.12085763]
[1721062262139,0.21008887,63601.0,63600.0,0.12085763]
[1721062262375,0.13218887,63601.0,63600.0,0.12085763]
[1721062262598,0.13218887,63601.0,63600.0,0.15103202]
[1721062262599,0.03218887,63601.0,63600.0,0.15103202]
[1721062262841,0.02918887,63601.0,63600.0,0.14903202]
[1721062263049,0.04318887,63601.0,63600.0,0.15103202]
[1721062263266,0.05318887,63601.0,63600.0,0.002913]
[1721062263492,0.03918887,63601.0,63600.0,0.001913]
[1721062263674,0.03918887,63601.0,63600.0,0.03208739]
[1721062263880,0.02918887,63601.0,63600.0,0.03118739]
[1721062264291,0.02918887,63601.0,63600.0,0.15113202]
[1721062264493,0.02918887,63601.0,63600.0,0.03118739]
[1721062264711,0.03318887,63601.0,63600.0,0.03118739]
[1721062264873,0.03318887,63601.0,63600.0,0.14913202]
[1721062264874,0.04065652,63601.0,63600.0,0.14913202]
[1721062265099,0.04065652,63601.0,63600.0,0.03080332]
[1721062265321,0.04065652,63601.0,63600.0,0.00062893]
[1721062266068,0.03765652,63601.0,63600.0,0.00062893]
[1721062266266,0.03365652,63601.0,63600.0,0.00062893]
[1721062266462,0.03865652,63601.0,63600.0,0.00062893]
[1721062266812,0.03365652,63601.0,63600.0,0.00062893]
[1721062267012,0.03665652,63601.0,63600.0,0.00062893]
[1721062267218,0.04065652,63601.0,63600.0,0.00062893]
[1721062267417,0.11985652,63601.0,63600.0,0.00062893]
[1721062267626,0.11785652,63601.0,63600.0,0.00062893]
[1721062268025,0.11285652,63601.0,63600.0,0.00062893]
[1721062268708,0.03665652,63601.0,63600.0,0.11857356]
[1721062268933,0.03665652,63601.0,63600.0,0.14874795]
[1721062269339,0.03965652,63601.0,63600.0,0.14874795]
[1721062269650,0.03665652,63601.0,63600.0,0.14874795]
[1721062269864,0.03665652,63601.0,63600.0,0.03080332]
[1721062270084,0.03865652,63601.0,63600.0,0.00062893]
[1721062270286,0.03365652,63601.0,63600.0,0.03080332]
[1721062270489,0.03565652,63601.0,63600.0,0.03080332]
[1721062271008,0.03365652,63601.0,63600.0,0.03080332]
[1721062271232,0.03865652,63601.0,63600.0,0.03080332]
[1721062271432,0.10255652,63601.0,63600.0,0.00062893]
[1721062271627,0.72021213,63601.0,63600.0,0.00062893]
[1721062271835,0.71721213,63601.0,63600.0,0.00062893]
[1721062272042,0.52321213,63601.0,63600.0,0.00062893]
[1721062272667,0.52121213,63601.0,63600.0,0.00062893]
[1721062273075,0.52521213,63601.0,63600.0,0.00062893]
[1721062273288,0.51521213,63601.0,63600.0,0.00062893]
[1721062273747,0.29848652,63601.0,63600.0,0.00262893]
[1721062274175,0.28548652,63601.0,63600.0,0.00162893]
[1721062274377,0.29848652,63601.0,63600.0,0.00262893]
[1721062274799,0.28548652,63601.0,63600.0,0.00162893]
[1721062275221,0.29948652,63601.0,63600.0,0.00262893]
[1721062276222,0.03148652,63601.0,63600.0,0.36927995]
[1721062276440,0.02548652,63601.0,63600.0,0.36827995]
[1721062276695,0.01483,63601.0,63600.0,0.37134348]
[1721062276974,0.01483,63601.0,63600.0,0.37234348]
[1721062276975,0.02283,63601.0,63600.0,0.37234348]
[1721062277128,0.00883,63601.0,63600.0,0.37134348]
[1721062277333,0.00883,63601.0,63600.0,0.99720995]
[1721062277554,0.00983,63601.0,63600.0,0.68274495]
[1721062277758,0.00183,63601.0,63600.0,0.21004795]
[1721062277931,0.00183,63601.0,63600.0,0.14874795]
[1721062278154,0.00960578,63601.0,63600.0,0.14974795]
[1721062278354,0.00183,63601.0,63600.0,0.15574795]
[1721062278558,0.00183,63601.0,63600.0,0.03780332]
[1721062278947,0.00966251,63601.0,63600.0,0.03080332]
[1721062279141,0.02383,63601.0,63600.0,0.03080332]
[1721062279328,0.11320407,63601.0,63600.0,0.00062893]
[1721062279728,0.34480407,63601.0,63600.0,0.00862893]
[1721062280006,0.67410407,63601.0,63600.0,0.00862893]
[1721062280184,0.67410407,63601.0,63600.0,0.00062893]
[1721062280379,0.67410407,63601.0,63600.0,0.00362893]
[1721062280585,0.67510407,63601.0,63600.0,0.01162893]
[1721062280778,0.67410407,63601.0,63600.0,0.00062893]
[1721062281188,0.69110407,63601.0,63600.0,0.00262893]
[1721062281456,0.69110407,63601.0,63600.0,0.00162893]
[1721062281457,0.29600407,63601.0,63600.0,0.00162893]
[1721062281641,0.28500407,63601.0,63600.0,0.00162893]
[1721062281851,0.29100407,63601.0,63600.0,0.00262893]
[1721062282182,0.30200407,63601.0,63600.0,0.00262893]
[1721062282778,0.76592968,63601.0,63600.0,0.00262893]
[1721062283196,0.75392968,63601.0,63600.0,0.00162893]
[1721062283368,0.76092968,63601.0,63600.0,0.00262893]
[1721062283753,0.74292968,63601.0,63600.0,0.00062893]
[1721062283967,0.94292968,63601.0,63600.0,0.00162893]
[1721062284153,0.96092968,63601.0,63600.0,0.00262893]
[1721062284356,0.96092968,63601.0,63600.0,0.00162893]
[1721062284559,0.94992968,63601.0,63600.0,0.00062893]
[1721062284759,0.95692968,63601.0,63600.0,0.00162893]
[1721062284954,0.76992968,63601.0,63600.0,0.00262893]
[1721062285369,0.96992968,63601.0,63600.0,0.00262893]
[1721062285971,0.76992968,63601.0,63600.0,0.00262893]
[1721062286575,0.96992968,63601.0,63600.0,0.00262893]
[1721062287007,1.06992968,63601.0,63600.0,0.00262893]
[1721062287410,0.76992968,63601.0,63600.0,0.00262893]
[1721062287612,0.70010407,63601.0,63600.0,0.00262893]
[1721062287852,0.13670407,63601.0,63600.0,0.00262893]
[1721062287998,0.03670407,63601.0,63600.0,0.20162594]
[1721062288218,0.03670407,63601.0,63600.0,0.23180033]
[1721062288395,0.03670407,63601.0,63600.0,0.20162594]
[1721062288598,0.02370407,63601.0,63600.0,0.08268131]
[1721062288836,0.03670407,63601.0,63600.0,0.08368131]
[1721062289028,0.03670407,63601.0,63600.0,0.00262893]
[1721062289482,0.01670407,63601.0,63600.0,0.00062893]
[1721062289630,0.00970407,63601.0,63600.0,0.00062893]
[1721062289834,0.01570407,63601.0,63600.0,0.00162893]
[1721062290280,0.03270407,63601.0,63600.0,0.00062893]
[1721062290606,0.03870407,63601.0,63600.0,0.00162893]
[1721062290820,0.04770407,63601.0,63600.0,0.00162893]
[1721062291229,0.04470407,63601.0,63600.0,0.00162893]
[1721062291430,0.03270407,63601.0,63600.0,0.00062893]
[1721062291650,0.04470407,63601.0,63600.0,0.00162893]
[1721062292239,0.03270407,63601.0,63600.0,0.00062893]
[1721062292940,0.03870407,63601.0,63600.0,0.00162893]
[1721062293153,0.04970407,63601.0,63600.0,0.00262893]
[1721062294586,0.03870407,63601.0,63600.0,0.00162893]
[1721062295014,0.03870407,63601.0,63600.0,0.03280332]
[1721062295015,0.02770407,63601.0,63600.0,0.03280332]
[1721062295219,0.02770407,63601.0,63600.0,0.29554795]
[1721062296009,0.01570407,63601.0,63600.0,0.09490332]
[1721062296209,0.00970407,63601.0,63600.0,0.09390332]
[1721062296448,0.01870407,63601.0,63600.0,0.09490332]
[1721062296672,0.04770407,63601.0,63600.0,0.09590332]
[1721062297091,0.04770407,63601.0,63600.0,0.15074795]
[1721062297489,0.04770407,63601.0,63600.0,0.00262893]
[1721062298760,0.14770407,63601.0,63600.0,0.00262893]
[1721062300298,0.87985968,63601.0,63600.0,0.00262893]
[1721062300988,0.72262968,63601.0,63600.0,0.00262893]
[1721062301189,0.71362968,63601.0,63600.0,0.00162893]
[1721062301316,0.51362968,63601.0,63600.0,0.00162893]
[1721062301522,0.51362968,63601.0,63600.0,0.00262893]
[1721062301523,0.45480407,63601.0,63600.0,0.00262893]
[1721062301969,0.44380407,63601.0,63600.0,0.00162893]
[1721062302373,0.44880407,63601.0,63600.0,0.00162893]
[1721062302831,0.45080407,63601.0,63600.0,0.00162893]
[1721062303186,0.45080407,63601.0,63600.0,0.00062893]
[1721062303390,0.46380407,63601.0,63600.0,0.00162893]
[1721062304151,0.47780407,63601.0,63600.0,0.00162893]
[1721062305393,0.17270407,63601.0,63600.0,0.00162893]
[1721062305624,0.07270407,63601.0,63600.0,0.00162893]
[1721062305798,0.17270407,63601.0,63600.0,0.00162893]
[1721062307092,0.07270407,63601.0,63600.0,0.00162893]
[1721062309391,0.07270407,63601.0,63600.0,0.08268131]
[1721062309996,0.07270407,63601.0,63600.0,0.00162893]